[Event "*** Titled Tuesday Blitz"]
[Site "Chess.com"]
[Date "2020.04.28"]
[Round "1"]
[White "Benjoneliere44"]
[Black "chenxiaoyuer"]
[Result "1-0"]
[WhiteElo "2511"]
[BlackElo "2123"]
[TimeControl "180+1"]
[EndTime "10:07:17 PDT"]
[Termination "Benjoneliere44 won on time"]

1. d4 {[%clk 0:03:00.9]} 1... Nf6 {[%clk 0:02:58.9]} 2. Bf4 {[%clk 0:02:59.4]}
2... g6 {[%clk 0:02:50.2]} 3. Nf3 {[%clk 0:02:57.9]} 3... Bg7 {[%clk 0:02:49]}
4. c3 {[%clk 0:02:56.3]} 4... O-O {[%clk 0:02:42.3]} 5. Nbd2 {[%clk 0:02:54.6]}
5... d5 {[%clk 0:02:40.9]} 6. e3 {[%clk 0:02:52.6]} 6... c5 {[%clk 0:02:27.9]}
7. h3 {[%clk 0:02:50.3]} 7... Nc6 {[%clk 0:02:20.2]} 8. Bd3 {[%clk 0:02:48.1]}
8... Nd7 {[%clk 0:02:17.7]} 9. O-O {[%clk 0:02:46.6]} 9... e5 {[%clk 0:02:17.2]}
10. dxe5 {[%clk 0:02:45.7]} 10... Ndxe5 {[%clk 0:02:16.8]} 11. Nxe5 {[%clk
0:02:45.4]} 11... Nxe5 {[%clk 0:02:15.6]} 12. Be2 {[%clk 0:02:45.1]} 12... Be6
{[%clk 0:02:14.5]} 13. Nf3 {[%clk 0:02:44.2]} 13... Nxf3+ {[%clk 0:02:09.1]} 14.
Bxf3 {[%clk 0:02:42.5]} 14... Qd7 {[%clk 0:02:07.9]} 15. Qe2 {[%clk 0:02:35.8]}
15... Rad8 {[%clk 0:02:01.3]} 16. Rfd1 {[%clk 0:02:33.5]} 16... Qa4 {[%clk
0:01:49.6]} 17. b3 {[%clk 0:02:27.8]} 17... Qa5 {[%clk 0:01:17.4]} 18. b4 {[%clk
0:02:18.3]} 18... Qa3 {[%clk 0:00:57.8]} 19. bxc5 {[%clk 0:02:14.6]} 19... Qxc5
{[%clk 0:00:57.1]} 20. Rac1 {[%clk 0:02:13]} 20... b5 {[%clk 0:00:48.8]} 21. Qb2
{[%clk 0:02:01.9]} 21... Rd7 {[%clk 0:00:38.8]} 22. e4 {[%clk 0:01:41.3]} 22...
dxe4 {[%clk 0:00:26.7]} 23. Rxd7 {[%clk 0:01:35.6]} 23... Bxd7 {[%clk
0:00:17.1]} 24. Bxe4 {[%clk 0:01:34.1]} 24... Qc4 {[%clk 0:00:16.6]} 25. Qc2
{[%clk 0:01:28.6]} 25... Re8 {[%clk 0:00:14.9]} 26. f3 {[%clk 0:01:06.3]} 26...
Bc6 {[%clk 0:00:13.6]} 27. Bxc6 {[%clk 0:01:03.9]} 27... Qxc6 {[%clk 0:00:11.9]}
28. Kh1 {[%clk 0:01:04]} 28... Qc4 {[%clk 0:00:10.4]} 29. Bg3 {[%clk 0:01:02.1]}
29... a6 {[%clk 0:00:08.1]} 30. Kh2 {[%clk 0:00:59.5]} 30... Re2 {[%clk
0:00:07.5]} 31. Qd1 {[%clk 0:00:58.6]} 31... Qxa2 {[%clk 0:00:05.7]} 32. Qd8+
{[%clk 0:00:57.2]} 32... Bf8 {[%clk 0:00:05.6]} 33. Rg1 {[%clk 0:00:58.1]} 33...
Qe6 {[%clk 0:00:04.8]} 34. Bf4 {[%clk 0:00:56.1]} 34... Qe7 {[%clk 0:00:04.1]}
35. Qd3 {[%clk 0:00:55.4]} 35... Re6 {[%clk 0:00:03.3]} 36. Rd1 {[%clk
0:00:52.5]} 36... Qb7 {[%clk 0:00:03.4]} 37. Qd8 {[%clk 0:00:51.2]} 37... Qc6
{[%clk 0:00:03.5]} 38. Qb8 {[%clk 0:00:47.1]} 38... Re8 {[%clk 0:00:03.5]} 39.
Rd8 {[%clk 0:00:47.2]} 39... Rxd8 {[%clk 0:00:03.5]} 40. Qxd8 {[%clk 0:00:48.1]}
40... Qe6 {[%clk 0:00:03.7]} 41. Bh6 {[%clk 0:00:46.1]} 41... Qe7 {[%clk
0:00:03.7]} 42. Qa8 {[%clk 0:00:45.1]} 42... Qd6+ {[%clk 0:00:03.6]} 43. g3
{[%clk 0:00:43.5]} 43... Qe7 {[%clk 0:00:03.1]} 44. h4 {[%clk 0:00:42.1]} 44...
f5 {[%clk 0:00:02.7]} 45. Bxf8 {[%clk 0:00:40.7]} 45... Qxf8 {[%clk 0:00:02.4]}
46. Qxa6 {[%clk 0:00:41.1]} 46... Qe7 {[%clk 0:00:02]} 47. Qxb5 {[%clk 0:00:41]}
47... Qe1 {[%clk 0:00:01.5]} 48. Qd5+ {[%clk 0:00:40.7]} 48... Kg7 {[%clk
0:00:01.3]} 49. Qd4+ {[%clk 0:00:40.9]} 1-0

[Event "*** Titled Tuesday Blitz"]
[Site "Chess.com"]
[Date "2020.04.28"]
[Round "1"]
[White "Alexander_Donchenko"]
[Black "MathiasWomacka"]
[Result "1-0"]
[WhiteElo "2880"]
[BlackElo "2449"]
[TimeControl "180+1"]
[EndTime "10:07:19 PDT"]
[Termination "Alexander_Donchenko won by resignation"]

1. Nf3 {[%clk 0:02:59.4]} 1... c5 {[%clk 0:02:59.7]} 2. c4 {[%clk 0:02:58.7]}
2... Nf6 {[%clk 0:02:58.4]} 3. g3 {[%clk 0:02:58.4]} 3... b6 {[%clk 0:02:57.9]}
4. Bg2 {[%clk 0:02:58.5]} 4... Bb7 {[%clk 0:02:58.5]} 5. O-O {[%clk 0:02:58.8]}
5... e6 {[%clk 0:02:58.6]} 6. Nc3 {[%clk 0:02:58.7]} 6... Be7 {[%clk 0:02:58.6]}
7. Re1 {[%clk 0:02:59]} 7... d5 {[%clk 0:02:57.4]} 8. cxd5 {[%clk 0:02:59.1]}
8... Nxd5 {[%clk 0:02:58.3]} 9. d4 {[%clk 0:02:48]} 9... Nxc3 {[%clk 0:02:54.5]}
10. bxc3 {[%clk 0:02:47.8]} 10... Be4 {[%clk 0:02:52.6]} 11. a4 {[%clk
0:02:18.8]} 11... O-O {[%clk 0:02:50.4]} 12. a5 {[%clk 0:02:18.8]} 12... b5
{[%clk 0:02:38]} 13. Qb3 {[%clk 0:02:09.9]} 13... a6 {[%clk 0:02:36.1]} 14. Ne5
{[%clk 0:02:05.1]} 14... Bxg2 {[%clk 0:02:32.2]} 15. Kxg2 {[%clk 0:02:06]} 15...
cxd4 {[%clk 0:02:26.7]} 16. cxd4 {[%clk 0:01:50.1]} 16... Qxd4 {[%clk
0:02:20.5]} 17. Bb2 {[%clk 0:01:49.1]} 17... Qe4+ {[%clk 0:02:19.3]} 18. f3
{[%clk 0:01:48.9]} 18... Qb7 {[%clk 0:02:18.3]} 19. Red1 {[%clk 0:01:33]} 19...
Bf6 {[%clk 0:02:08.3]} 20. Rac1 {[%clk 0:01:17.1]} 20... Bxe5 {[%clk 0:02:04.7]}
21. Bxe5 {[%clk 0:01:18]} 21... Nc6 {[%clk 0:02:05.1]} 22. Bb2 {[%clk
0:01:14.4]} 22... Rac8 {[%clk 0:01:49.7]} 23. Qc3 {[%clk 0:01:07.7]} 23... f6
{[%clk 0:01:41.1]} 24. Rd6 {[%clk 0:01:06.7]} 24... Ne5 {[%clk 0:01:34.3]} 25.
Qb3 {[%clk 0:00:57.4]} 25... Nc4 {[%clk 0:01:27.6]} 26. Rxe6 {[%clk 0:00:56.9]}
26... Rfe8 {[%clk 0:01:21.3]} 27. Rxc4 {[%clk 0:00:43.5]} 27... Rxe6 {[%clk
0:01:15.7]} 28. Re4 {[%clk 0:00:43.3]} 28... Qxe4 {[%clk 0:00:51.7]} 29. fxe4
{[%clk 0:00:44.2]} 29... Rc4 {[%clk 0:00:51.7]} 30. Bd4 {[%clk 0:00:37.8]} 30...
Rxe4 {[%clk 0:00:50.3]} 31. e3 {[%clk 0:00:36.9]} 31... h5 {[%clk 0:00:45.9]}
32. Kf3 {[%clk 0:00:36.8]} 32... Re6 {[%clk 0:00:34.5]} 33. Qd3 {[%clk
0:00:36.1]} 33... Ra4 {[%clk 0:00:21.4]} 34. Qf5 {[%clk 0:00:35.1]} 34... Re7
{[%clk 0:00:11.6]} 35. Qc8+ {[%clk 0:00:33.5]} 35... Kh7 {[%clk 0:00:10.1]} 36.
Qxa6 {[%clk 0:00:34.1]} 36... Ra2 {[%clk 0:00:09.5]} 37. Qxb5 {[%clk 0:00:32.8]}
37... Rxh2 {[%clk 0:00:08.9]} 38. a6 {[%clk 0:00:31]} 38... h4 {[%clk
0:00:08.5]} 39. Qh5+ {[%clk 0:00:27.6]} 39... Kg8 {[%clk 0:00:08.1]} 40. gxh4
{[%clk 0:00:28.3]} 1-0

[Event "*** Titled Tuesday Blitz"]
[Site "Chess.com"]
[Date "2020.04.28"]
[Round "1"]
[White "Keks2017"]
[Black "Gajuchess"]
[Result "1/2-1/2"]
[WhiteElo "2418"]
[BlackElo "2758"]
[TimeControl "180+1"]
[EndTime "10:07:19 PDT"]
[Termination "Game drawn by repetition"]

1. g3 {[%clk 0:02:59.9]} 1... d5 {[%clk 0:02:39.4]} 2. Bg2 {[%clk 0:02:59.7]}
2... e5 {[%clk 0:02:37.3]} 3. d3 {[%clk 0:02:59.3]} 3... Nf6 {[%clk 0:02:35.4]}
4. Nf3 {[%clk 0:02:59.1]} 4... Nc6 {[%clk 0:02:17.8]} 5. O-O {[%clk 0:02:58.7]}
5... Be7 {[%clk 0:02:17.4]} 6. c3 {[%clk 0:02:57.7]} 6... O-O {[%clk 0:02:17.1]}
7. Qc2 {[%clk 0:02:57.2]} 7... Bf5 {[%clk 0:02:12.6]} 8. Nbd2 {[%clk 0:02:51.3]}
8... h6 {[%clk 0:02:01.9]} 9. e4 {[%clk 0:02:50.3]} 9... Bh7 {[%clk 0:02:02.5]}
10. Re1 {[%clk 0:02:49.6]} 10... dxe4 {[%clk 0:01:51.6]} 11. dxe4 {[%clk
0:02:48.9]} 11... a5 {[%clk 0:01:51]} 12. Nh4 {[%clk 0:02:43]} 12... Bc5 {[%clk
0:01:47.7]} 13. h3 {[%clk 0:02:41.3]} 13... a4 {[%clk 0:01:47.9]} 14. Nf5 {[%clk
0:02:37.9]} 14... Re8 {[%clk 0:01:45.2]} 15. Nf1 {[%clk 0:02:37.4]} 15... Bxf5
{[%clk 0:01:22.8]} 16. exf5 {[%clk 0:02:36.6]} 16... e4 {[%clk 0:01:23.7]} 17.
Be3 {[%clk 0:02:33.7]} 17... Bxe3 {[%clk 0:01:21.4]} 18. Rxe3 {[%clk 0:02:33.4]}
18... Qd5 {[%clk 0:01:21.2]} 19. g4 {[%clk 0:02:30.3]} 19... Ne5 {[%clk
0:01:10.6]} 20. Ng3 {[%clk 0:02:19.9]} 20... Nc4 {[%clk 0:01:04.9]} 21. Re2
{[%clk 0:02:18.5]} 21... Nd6 {[%clk 0:01:04.8]} 22. a3 {[%clk 0:02:08.7]} 22...
Re5 {[%clk 0:01:04.6]} 23. Rd1 {[%clk 0:02:07.1]} 23... Qc6 {[%clk 0:01:03.3]}
24. Rd4 {[%clk 0:01:52.9]} 24... Qb5 {[%clk 0:00:53.4]} 25. Rb4 {[%clk
0:01:45.2]} 25... Qd7 {[%clk 0:00:50.7]} 26. Rd4 {[%clk 0:01:36.3]} 26... b5
{[%clk 0:00:40.7]} 27. Bxe4 {[%clk 0:01:19.4]} 27... Rae8 {[%clk 0:00:39.4]} 28.
Bf3 {[%clk 0:01:18.1]} 28... Rxe2 {[%clk 0:00:39.6]} 29. Bxe2 {[%clk 0:01:17.9]}
29... c5 {[%clk 0:00:38.6]} 30. Rd1 {[%clk 0:01:16]} 30... Qc6 {[%clk
0:00:38.7]} 31. Bf1 {[%clk 0:01:13]} 31... Nc4 {[%clk 0:00:36.1]} 32. Bxc4
{[%clk 0:00:50.1]} 32... bxc4 {[%clk 0:00:37]} 33. Qd2 {[%clk 0:00:49.6]} 33...
Qf3 {[%clk 0:00:36.2]} 34. Re1 {[%clk 0:00:48.3]} 34... Rxe1+ {[%clk 0:00:36]}
35. Qxe1 {[%clk 0:00:47.4]} 35... Nd5 {[%clk 0:00:34.3]} 36. Qe4 {[%clk
0:00:35.8]} 36... Qd1+ {[%clk 0:00:33.1]} 37. Kg2 {[%clk 0:00:33.5]} 37... Qd2
{[%clk 0:00:31.9]} 38. Nh5 {[%clk 0:00:28.4]} 38... Kf8 {[%clk 0:00:28]} 39. Qe5
{[%clk 0:00:23]} 39... g6 {[%clk 0:00:24]} 40. fxg6 {[%clk 0:00:21.2]} 40...
fxg6 {[%clk 0:00:24.9]} 41. Qd6+ {[%clk 0:00:19.7]} 41... Kf7 {[%clk 0:00:23.7]}
42. Qd7+ {[%clk 0:00:19.7]} 42... Kf8 {[%clk 0:00:23.6]} 43. Qd8+ {[%clk
0:00:19.7]} 43... Kf7 {[%clk 0:00:23]} 44. Qd7+ {[%clk 0:00:19.8]} 44... Kf8
{[%clk 0:00:23.4]} 45. Qd8+ {[%clk 0:00:19.9]} 45... Kf7 {[%clk 0:00:23.7]} 46.
Qd7+ {[%clk 0:00:20]} 1/2-1/2

[Event "*** Titled Tuesday Blitz"]
[Site "Chess.com"]
[Date "2020.04.28"]
[Round "1"]
[White "731291"]
[Black "Zufi1811"]
[Result "0-1"]
[WhiteElo "2671"]
[BlackElo "2425"]
[TimeControl "180+1"]
[EndTime "10:07:19 PDT"]
[Termination "Zufi1811 won on time"]

1. d4 {[%clk 0:03:00.8]} 1... Nf6 {[%clk 0:02:58.8]} 2. Nf3 {[%clk 0:03:00]}
2... g6 {[%clk 0:02:58.9]} 3. Nbd2 {[%clk 0:02:58.1]} 3... Bg7 {[%clk
0:02:57.8]} 4. e4 {[%clk 0:02:58.1]} 4... d6 {[%clk 0:02:58.4]} 5. Bd3 {[%clk
0:02:58.4]} 5... O-O {[%clk 0:02:58.2]} 6. O-O {[%clk 0:02:58.9]} 6... Nc6
{[%clk 0:02:58.7]} 7. c3 {[%clk 0:02:59.4]} 7... e5 {[%clk 0:02:58.7]} 8. Re1
{[%clk 0:02:59.2]} 8... Re8 {[%clk 0:02:47]} 9. h3 {[%clk 0:02:58.9]} 9... h6
{[%clk 0:02:46.7]} 10. Nf1 {[%clk 0:02:55.7]} 10... Bd7 {[%clk 0:02:35]} 11. Ng3
{[%clk 0:02:37.4]} 11... Qe7 {[%clk 0:02:34.6]} 12. d5 {[%clk 0:02:34.5]} 12...
Nb8 {[%clk 0:02:34.1]} 13. c4 {[%clk 0:02:34.3]} 13... a5 {[%clk 0:02:33.1]} 14.
Be3 {[%clk 0:02:25]} 14... Na6 {[%clk 0:02:32.5]} 15. b3 {[%clk 0:02:24.4]}
15... Rf8 {[%clk 0:02:23.8]} 16. Qd2 {[%clk 0:02:21.3]} 16... Kh7 {[%clk
0:02:20.7]} 17. Qxa5 {[%clk 0:02:18.7]} 17... Nc5 {[%clk 0:02:16.9]} 18. Qd2
{[%clk 0:02:18.8]} 18... Nxd3 {[%clk 0:02:13.2]} 19. Qxd3 {[%clk 0:02:19.7]}
19... Ng8 {[%clk 0:02:06.9]} 20. b4 {[%clk 0:01:59.2]} 20... f5 {[%clk
0:02:06.7]} 21. Bd2 {[%clk 0:01:58.3]} 21... f4 {[%clk 0:02:03.2]} 22. Nf1
{[%clk 0:01:58.6]} 22... g5 {[%clk 0:02:03.6]} 23. N3h2 {[%clk 0:01:59.1]} 23...
Nf6 {[%clk 0:02:03.2]} 24. Rec1 {[%clk 0:01:53.7]} 24... h5 {[%clk 0:02:00.7]}
25. c5 {[%clk 0:01:50.6]} 25... g4 {[%clk 0:02:00.6]} 26. cxd6 {[%clk
0:01:48.6]} 26... cxd6 {[%clk 0:02:01.5]} 27. Rc7 {[%clk 0:01:45.3]} 27... b5
{[%clk 0:01:39]} 28. Rb7 {[%clk 0:01:30.9]} 28... Rfb8 {[%clk 0:01:33.2]} 29.
Rxb8 {[%clk 0:01:29.7]} 29... Rxb8 {[%clk 0:01:34.1]} 30. Rc1 {[%clk 0:01:19.9]}
30... gxh3 {[%clk 0:01:32]} 31. gxh3 {[%clk 0:01:19.9]} 31... Rg8 {[%clk
0:01:32.3]} 32. Kh1 {[%clk 0:01:20.2]} 32... Bf8 {[%clk 0:01:23.7]} 33. Ng3
{[%clk 0:00:45.8]} 33... fxg3 {[%clk 0:01:20.8]} 34. fxg3 {[%clk 0:00:46.7]}
34... Bxh3 {[%clk 0:01:17.4]} 35. Nf3 {[%clk 0:00:46.1]} 35... Kh8 {[%clk
0:01:11.6]} 36. Ng5 {[%clk 0:00:42.8]} 36... Bd7 {[%clk 0:01:00.9]} 37. Rf1
{[%clk 0:00:35.9]} 37... Bh6 {[%clk 0:00:57.5]} 38. Ne6 {[%clk 0:00:23.6]} 38...
Bxe6 {[%clk 0:00:36.7]} 39. dxe6 {[%clk 0:00:21]} 39... Qxe6 {[%clk 0:00:33.6]}
40. Kg2 {[%clk 0:00:17]} 40... Bxd2 {[%clk 0:00:30.2]} 41. Qxd2 {[%clk
0:00:17.9]} 41... Rxg3+ {[%clk 0:00:29]} 0-1

[Event "*** Titled Tuesday Blitz"]
[Site "Chess.com"]
[Date "2020.04.28"]
[Round "1"]
[White "Beca95"]
[Black "zubridis"]
[Result "1-0"]
[WhiteElo "2872"]
[BlackElo "2447"]
[TimeControl "180+1"]
[EndTime "10:07:20 PDT"]
[Termination "Beca95 won on time"]

1. d4 {[%clk 0:03:00.9]} 1... g6 {[%clk 0:02:40.8]} 2. Nf3 {[%clk 0:02:58.1]}
2... Bg7 {[%clk 0:02:37.4]} 3. e4 {[%clk 0:02:58.2]} 3... d6 {[%clk 0:02:35.1]}
4. Bc4 {[%clk 0:02:58.7]} 4... e6 {[%clk 0:02:29.2]} 5. O-O {[%clk 0:02:56.5]}
5... Ne7 {[%clk 0:02:23.9]} 6. Bb3 {[%clk 0:02:55.7]} 6... O-O {[%clk
0:02:21.4]} 7. a4 {[%clk 0:02:54]} 7... Nbc6 {[%clk 0:02:19]} 8. h3 {[%clk
0:02:53.4]} 8... h6 {[%clk 0:02:15.9]} 9. a5 {[%clk 0:02:52.2]} 9... Kh7 {[%clk
0:02:09]} 10. c3 {[%clk 0:02:51.5]} 10... e5 {[%clk 0:01:25.1]} 11. dxe5 {[%clk
0:02:47.7]} 11... dxe5 {[%clk 0:01:21.9]} 12. Qe2 {[%clk 0:02:46.5]} 12... f5
{[%clk 0:01:14.7]} 13. Nbd2 {[%clk 0:02:42.8]} 13... f4 {[%clk 0:01:10.7]} 14.
Rd1 {[%clk 0:02:21.1]} 14... Qe8 {[%clk 0:01:10.6]} 15. Bd5 {[%clk 0:02:19.9]}
15... Bd7 {[%clk 0:01:07.2]} 16. b4 {[%clk 0:02:19.4]} 16... a6 {[%clk
0:01:06.2]} 17. Nb3 {[%clk 0:02:15.9]} 17... Rd8 {[%clk 0:01:03]} 18. Nc5 {[%clk
0:02:14.7]} 18... Bc8 {[%clk 0:01:02.3]} 19. Bb2 {[%clk 0:02:13.8]} 19... Rf6
{[%clk 0:00:52.7]} 20. Bb3 {[%clk 0:02:00.5]} 20... g5 {[%clk 0:00:48.6]} 21.
Rxd8 {[%clk 0:01:53.8]} 21... Qxd8 {[%clk 0:00:45.4]} 22. c4 {[%clk 0:01:41.7]}
22... Rd6 {[%clk 0:00:44.4]} 23. b5 {[%clk 0:01:38]} 23... Nd4 {[%clk
0:00:32.2]} 24. Nxd4 {[%clk 0:01:31.5]} 24... exd4 {[%clk 0:00:33.1]} 25. Nd3
{[%clk 0:01:30.8]} 25... Ng6 {[%clk 0:00:23.4]} 26. c5 {[%clk 0:01:18.8]} 26...
Rd7 {[%clk 0:00:20.5]} 27. b6 {[%clk 0:01:05.9]} 27... c6 {[%clk 0:00:19.4]} 28.
e5 {[%clk 0:00:57.8]} 28... Re7 {[%clk 0:00:18.7]} 29. Qe4 {[%clk 0:00:46.7]}
29... Bxe5 {[%clk 0:00:18.5]} 30. Nxe5 {[%clk 0:00:35.4]} 30... Rxe5 {[%clk
0:00:17.8]} 31. Qxd4 {[%clk 0:00:35.9]} 31... Qxd4 {[%clk 0:00:15.1]} 32. Bxd4
{[%clk 0:00:36.8]} 32... Re2 {[%clk 0:00:14.6]} 33. Kf1 {[%clk 0:00:30.3]} 33...
f3 {[%clk 0:00:14.4]} 34. Be3 {[%clk 0:00:15]} 34... Be6 {[%clk 0:00:11.8]} 35.
Bxe6 {[%clk 0:00:13.2]} 1-0

[Event "*** Titled Tuesday Blitz"]
[Site "Chess.com"]
[Date "2020.04.28"]
[Round "1"]
[White "SHIVACalypso"]
[Black "josiwales"]
[Result "0-1"]
[WhiteElo "2274"]
[BlackElo "2604"]
[TimeControl "180+1"]
[EndTime "10:07:23 PDT"]
[Termination "josiwales won by resignation"]

1. Nf3 {[%clk 0:03:00.3]} 1... d5 {[%clk 0:02:59.9]} 2. c4 {[%clk 0:02:58.2]}
2... Nf6 {[%clk 0:03:00.8]} 3. g3 {[%clk 0:02:54.2]} 3... c6 {[%clk 0:03:00.7]}
4. Bg2 {[%clk 0:02:54.1]} 4... Bf5 {[%clk 0:02:59.8]} 5. O-O {[%clk 0:02:54]}
5... Nbd7 {[%clk 0:02:59.2]} 6. d4 {[%clk 0:02:52.5]} 6... e6 {[%clk 0:02:58.7]}
7. Nc3 {[%clk 0:02:49.2]} 7... h6 {[%clk 0:02:58.3]} 8. Nd2 {[%clk 0:02:46.8]}
8... Be7 {[%clk 0:02:56.2]} 9. e4 {[%clk 0:02:46.2]} 9... dxe4 {[%clk
0:02:54.6]} 10. Ndxe4 {[%clk 0:02:47.1]} 10... O-O {[%clk 0:02:54.8]} 11. Be3
{[%clk 0:02:45.3]} 11... Nb6 {[%clk 0:02:52.3]} 12. b3 {[%clk 0:02:43.6]} 12...
Qd7 {[%clk 0:02:49.1]} 13. Nxf6+ {[%clk 0:02:39.7]} 13... Bxf6 {[%clk
0:02:48.8]} 14. Ne4 {[%clk 0:02:39.7]} 14... Bxe4 {[%clk 0:02:46.7]} 15. Bxe4
{[%clk 0:02:40.6]} 15... Rfd8 {[%clk 0:02:45.5]} 16. c5 {[%clk 0:01:17.9]} 16...
Nd5 {[%clk 0:02:30.8]} 17. Qf3 {[%clk 0:01:12.8]} 17... Nc3 {[%clk 0:02:24.5]}
18. Rac1 {[%clk 0:00:59.8]} 18... Nxe4 {[%clk 0:02:22]} 19. Qxe4 {[%clk
0:01:00.7]} 19... Qd5 {[%clk 0:02:16.6]} 20. Qxd5 {[%clk 0:00:57.7]} 20... Rxd5
{[%clk 0:02:16.1]} 21. Rc4 {[%clk 0:00:56.5]} 21... Rad8 {[%clk 0:02:14.6]} 22.
Rb4 {[%clk 0:00:51]} 22... R8d7 {[%clk 0:02:10.2]} 23. Rd1 {[%clk 0:00:35]}
23... e5 {[%clk 0:02:06.8]} 24. Rc4 {[%clk 0:00:31.1]} 24... exd4 {[%clk
0:02:06.1]} 25. Bf4 {[%clk 0:00:31.6]} 25... g5 {[%clk 0:02:04.5]} 26. Bd6
{[%clk 0:00:31.7]} 26... Kg7 {[%clk 0:01:54.9]} 27. Kg2 {[%clk 0:00:29.9]} 27...
b5 {[%clk 0:01:46.3]} 28. Rc2 {[%clk 0:00:27.1]} 28... Be5 {[%clk 0:01:46.1]}
29. Bxe5+ {[%clk 0:00:22.9]} 29... Rxe5 {[%clk 0:01:47]} 30. Rcd2 {[%clk
0:00:22.7]} 30... Red5 {[%clk 0:01:47.1]} 31. b4 {[%clk 0:00:22.3]} 31... f5
{[%clk 0:01:42]} 32. Kf3 {[%clk 0:00:20]} 32... d3 {[%clk 0:01:41.7]} 33. Re1
{[%clk 0:00:17.9]} 33... Rd4 {[%clk 0:01:39.8]} 34. a3 {[%clk 0:00:17.5]} 34...
Kf7 {[%clk 0:01:35.7]} 35. Re5 {[%clk 0:00:16.5]} 35... g4+ {[%clk 0:01:22.2]}
36. Ke3 {[%clk 0:00:15.1]} 36... Kf6 {[%clk 0:01:18]} 37. Re8 {[%clk 0:00:14.8]}
37... R4d5 {[%clk 0:01:03.1]} 38. f4 {[%clk 0:00:14.2]} 38... Re7+ {[%clk
0:00:43.5]} 39. Rxe7 {[%clk 0:00:13.4]} 39... Kxe7 {[%clk 0:00:44.4]} 40. Rxd3
{[%clk 0:00:14]} 40... Rxd3+ {[%clk 0:00:44.6]} 41. Kxd3 {[%clk 0:00:14.9]}
41... Ke6 {[%clk 0:00:44.7]} 42. Kd4 {[%clk 0:00:11.5]} 42... h5 {[%clk
0:00:44.5]} 43. Ke3 {[%clk 0:00:10.9]} 43... Kd5 {[%clk 0:00:38.4]} 44. Kd3
{[%clk 0:00:11.3]} 44... a6 {[%clk 0:00:38.9]} 45. Ke3 {[%clk 0:00:10]} 45...
Kc4 {[%clk 0:00:39.1]} 46. Kd2 {[%clk 0:00:08.4]} 46... Kb3 {[%clk 0:00:38.5]}
47. Kd3 {[%clk 0:00:08.3]} 47... Kxa3 {[%clk 0:00:38.9]} 48. Kc3 {[%clk
0:00:08.7]} 48... Ka4 {[%clk 0:00:38.7]} 49. Kd4 {[%clk 0:00:09.6]} 49... Kxb4
{[%clk 0:00:39.2]} 50. Ke5 {[%clk 0:00:10.5]} 50... Kxc5 {[%clk 0:00:39.5]} 51.
Kxf5 {[%clk 0:00:11.4]} 51... b4 {[%clk 0:00:40.1]} 52. Kg6 {[%clk 0:00:11.9]}
52... b3 {[%clk 0:00:40.7]} 53. f5 {[%clk 0:00:12.8]} 53... b2 {[%clk
0:00:41.1]} 54. f6 {[%clk 0:00:13.7]} 54... b1=Q+ {[%clk 0:00:41.5]} 55. Kg7
{[%clk 0:00:13.3]} 55... Qf5 {[%clk 0:00:36.9]} 0-1

[Event "*** Titled Tuesday Blitz"]
[Site "Chess.com"]
[Date "2020.04.28"]
[Round "1"]
[White "crywolf1986"]
[Black "Funkmaus"]
[Result "1-0"]
[WhiteElo "2538"]
[BlackElo "2192"]
[TimeControl "180+1"]
[EndTime "10:07:24 PDT"]
[Termination "crywolf1986 won on time"]

1. d4 {[%clk 0:03:00.9]} 1... d5 {[%clk 0:03:00]} 2. Nf3 {[%clk 0:02:59.7]} 2...
c6 {[%clk 0:03:00.3]} 3. c4 {[%clk 0:02:59.5]} 3... Nf6 {[%clk 0:03:00.8]} 4. e3
{[%clk 0:02:58.8]} 4... Bg4 {[%clk 0:02:58.9]} 5. Nbd2 {[%clk 0:02:58.4]} 5...
e6 {[%clk 0:02:58.6]} 6. Bd3 {[%clk 0:02:57.4]} 6... Bd6 {[%clk 0:02:51.3]} 7.
h3 {[%clk 0:02:51.9]} 7... Bh5 {[%clk 0:02:47.7]} 8. Qc2 {[%clk 0:02:47.7]} 8...
Nbd7 {[%clk 0:02:43.4]} 9. O-O {[%clk 0:02:46.5]} 9... O-O {[%clk 0:02:40.6]}
10. b3 {[%clk 0:02:44.6]} 10... Qe7 {[%clk 0:02:25]} 11. Bb2 {[%clk 0:02:43.2]}
11... Rac8 {[%clk 0:02:21]} 12. c5 {[%clk 0:02:35.9]} 12... Bc7 {[%clk
0:02:14.5]} 13. b4 {[%clk 0:02:35.8]} 13... e5 {[%clk 0:02:01.2]} 14. dxe5
{[%clk 0:02:34.5]} 14... Nxe5 {[%clk 0:02:02.1]} 15. Nxe5 {[%clk 0:02:30.3]}
15... Bxe5 {[%clk 0:02:02.9]} 16. Bxe5 {[%clk 0:02:16.9]} 16... Qxe5 {[%clk
0:02:03.7]} 17. Rab1 {[%clk 0:02:16]} 17... a6 {[%clk 0:02:01.5]} 18. Qb2 {[%clk
0:02:13.8]} 18... Qg5 {[%clk 0:01:56.2]} 19. Qd4 {[%clk 0:02:10.2]} 19... Rfe8
{[%clk 0:01:49.5]} 20. f4 {[%clk 0:02:04.3]} 20... Qh4 {[%clk 0:01:38.6]} 21.
Nf3 {[%clk 0:01:59.9]} 21... Qg3 {[%clk 0:01:22.4]} 22. a4 {[%clk 0:01:47.9]}
22... Ne4 {[%clk 0:01:21.1]} 23. Rb2 {[%clk 0:01:45.3]} 23... Bxf3 {[%clk
0:01:03.6]} 24. Rxf3 {[%clk 0:01:43]} 24... Qe1+ {[%clk 0:01:02.9]} 25. Kh2
{[%clk 0:01:42.7]} 25... Re6 {[%clk 0:00:52.3]} 26. Rb1 {[%clk 0:01:36.7]} 26...
Qh4 {[%clk 0:00:42.5]} 27. f5 {[%clk 0:01:22.8]} 27... Rh6 {[%clk 0:00:41.1]}
28. Bxe4 {[%clk 0:01:20.8]} 28... dxe4 {[%clk 0:00:39.4]} 29. Rf4 {[%clk
0:01:18.4]} 29... Qg5 {[%clk 0:00:31.8]} 30. Rd1 {[%clk 0:01:07.8]} 30... Rh4
{[%clk 0:00:12.8]} 31. Qxe4 {[%clk 0:00:58.6]} 31... Rxf4 {[%clk 0:00:11.4]} 32.
Qxf4 {[%clk 0:00:59.5]} 32... Qf6 {[%clk 0:00:11.9]} 33. Rd6 {[%clk 0:00:55.2]}
33... Qc3 {[%clk 0:00:10.1]} 34. f6 {[%clk 0:00:54]} 34... g6 {[%clk 0:00:06.4]}
35. Qh6 {[%clk 0:00:49.8]} 35... Qe5+ {[%clk 0:00:06.6]} 36. Kg1 {[%clk
0:00:42.4]} 36... Qa1+ {[%clk 0:00:06.7]} 37. Kf2 {[%clk 0:00:42.1]} 37... Qb2+
{[%clk 0:00:06.7]} 38. Kf3 {[%clk 0:00:40.2]} 1-0